[Event "*** Titled Tuesday Blitz"]
[Site "Chess.com"]
[Date "2021.03.09"]
[Round "11"]
[White "NovikovaGalina"]
[Black "WPWPWP-2015"]
[Result "0-1"]
[WhiteElo "2397"]
[BlackElo "2515"]
[TimeControl "180+1"]
[EndTime "12:10:44 PST"]
[Termination "WPWPWP-2015 won on time"]

1. e4 {[%clk 0:03:00.9]} 1... c5 {[%clk 0:02:55.8]} 2. Nf3 {[%clk 0:03:01]} 2...
d6 {[%clk 0:02:54.8]} 3. d4 {[%clk 0:03:01.4]} 3... cxd4 {[%clk 0:02:54.9]} 4.
Nxd4 {[%clk 0:03:02.3]} 4... Nf6 {[%clk 0:02:55]} 5. Nc3 {[%clk 0:03:02.5]} 5...
a6 {[%clk 0:02:55.3]} 6. h3 {[%clk 0:03:02.9]} 6... e6 {[%clk 0:02:54.6]} 7. g4
{[%clk 0:03:02.4]} 7... Be7 {[%clk 0:02:54.5]} 8. Bg2 {[%clk 0:03:02.8]} 8... h6
{[%clk 0:02:54.2]} 9. Be3 {[%clk 0:03:02.2]} 9... Qc7 {[%clk 0:02:50.9]} 10. a4
{[%clk 0:03:00.6]} 10... Nc6 {[%clk 0:02:50.6]} 11. f4 {[%clk 0:02:55.4]} 11...
Bd7 {[%clk 0:02:49.6]} 12. O-O {[%clk 0:02:54.6]} 12... Nxd4 {[%clk 0:02:41.9]}
13. Bxd4 {[%clk 0:02:55.5]} 13... Bc6 {[%clk 0:02:41.7]} 14. Qe2 {[%clk
0:02:35.2]} 14... e5 {[%clk 0:02:39.3]} 15. Be3 {[%clk 0:02:32.5]} 15... O-O
{[%clk 0:02:34.5]} 16. g5 {[%clk 0:02:28.9]} 16... hxg5 {[%clk 0:02:30.1]} 17.
fxg5 {[%clk 0:02:29.8]} 17... Nd7 {[%clk 0:02:27.6]} 18. Qh5 {[%clk 0:01:59.9]}
18... g6 {[%clk 0:02:10.5]} 19. Qh6 {[%clk 0:01:42.1]} 19... Nb6 {[%clk
0:01:32.4]} 20. Rf4 {[%clk 0:00:34.9]} 20... Bxg5 {[%clk 0:00:49.3]} 21. Qxg5
{[%clk 0:00:35.8]} 21... exf4 {[%clk 0:00:49.3]} 22. Bxf4 {[%clk 0:00:36.1]}
22... Qd8 {[%clk 0:00:33.8]} 23. Qh6 {[%clk 0:00:35.6]} 23... Qf6 {[%clk
0:00:26.7]} 24. Bg5 {[%clk 0:00:33.9]} 24... Qg7 {[%clk 0:00:26.4]} 25. Qh4
{[%clk 0:00:34.5]} 25... Qh7 {[%clk 0:00:21.8]} 26. Qf2 {[%clk 0:00:30.9]} 26...
Nc4 {[%clk 0:00:16.2]} 27. Bf6 {[%clk 0:00:25.9]} 27... Rfe8 {[%clk 0:00:15.2]}
28. Rd1 {[%clk 0:00:19.5]} 28... Re6 {[%clk 0:00:15.2]} 29. Nd5 {[%clk
0:00:15.7]} 29... Rae8 {[%clk 0:00:12.6]} 30. Nf4 {[%clk 0:00:14.1]} 30... Rxf6
{[%clk 0:00:12.2]} 31. Qg3 {[%clk 0:00:13.9]} 31... Qh6 {[%clk 0:00:11.8]} 32.
Nd3 {[%clk 0:00:13]} 32... Ne5 {[%clk 0:00:11]} 33. Nb4 {[%clk 0:00:12.6]} 33...
Qf4 {[%clk 0:00:09]} 34. Qe1 {[%clk 0:00:11.4]} 34... Nc4 {[%clk 0:00:06.5]} 35.
Qc3 {[%clk 0:00:10.4]} 35... Qxe4 {[%clk 0:00:05]} 36. Qxf6 {[%clk 0:00:09.1]}
36... Qe3+ {[%clk 0:00:04]} 37. Qf2 {[%clk 0:00:08.4]} 37... Bxg2 {[%clk
0:00:04.9]} 38. Kxg2 {[%clk 0:00:06.2]} 38... Qe4+ {[%clk 0:00:05]} 39. Qf3
{[%clk 0:00:05.4]} 39... Qxf3+ {[%clk 0:00:04]} 40. Kxf3 {[%clk 0:00:06.3]}
40... Nxb2 {[%clk 0:00:04.3]} 41. Rxd6 {[%clk 0:00:05.9]} 41... Nxa4 {[%clk
0:00:04.7]} 42. Rd7 {[%clk 0:00:06.8]} 42... Nc5 {[%clk 0:00:04.8]} 43. Rc7
{[%clk 0:00:05.9]} 43... Re5 {[%clk 0:00:05.4]} 44. c3 {[%clk 0:00:04.2]} 44...
Rf5+ {[%clk 0:00:06.3]} 45. Kg3 {[%clk 0:00:03.6]} 45... a5 {[%clk 0:00:06.6]}
46. Rc8+ {[%clk 0:00:04.5]} 46... Kg7 {[%clk 0:00:06.3]} 47. Na2 {[%clk
0:00:02.5]} 47... a4 {[%clk 0:00:05.7]} 48. Ra8 {[%clk 0:00:01.6]} 48... Kf6
{[%clk 0:00:05.2]} 49. Nb4 {[%clk 0:00:02.5]} 49... Ne4+ {[%clk 0:00:04]} 50.
Kg4 {[%clk 0:00:02.1]} 50... Nf2+ {[%clk 0:00:04]} 51. Kg3 {[%clk 0:00:01.7]}
51... Ne4+ {[%clk 0:00:04.7]} 0-1

[Event "*** Titled Tuesday Blitz"]
[Site "Chess.com"]
[Date "2021.03.09"]
[Round "11"]
[White "Fy_Rakotomaharo"]
[Black "NikolaN98"]
[Result "0-1"]
[WhiteElo "2710"]
[BlackElo "2559"]
[TimeControl "180+1"]
[EndTime "12:10:45 PST"]
[Termination "NikolaN98 won on time"]

1. g3 {[%clk 0:02:54.2]} 1... f5 {[%clk 0:02:58.2]} 2. Bg2 {[%clk 0:02:52.9]}
2... Nf6 {[%clk 0:02:58]} 3. d3 {[%clk 0:02:53.3]} 3... e5 {[%clk 0:02:57.5]} 4.
e4 {[%clk 0:02:50.5]} 4... fxe4 {[%clk 0:02:45.5]} 5. dxe4 {[%clk 0:02:50.2]}
5... Nc6 {[%clk 0:02:45]} 6. Ne2 {[%clk 0:02:44.6]} 6... Bc5 {[%clk 0:02:43.7]}
7. O-O {[%clk 0:02:44.1]} 7... O-O {[%clk 0:02:38.1]} 8. h3 {[%clk 0:02:44.3]}
8... d6 {[%clk 0:02:37.3]} 9. Nbc3 {[%clk 0:02:42.8]} 9... a6 {[%clk 0:02:25.2]}
10. Kh2 {[%clk 0:02:30.5]} 10... Qe8 {[%clk 0:02:16.6]} 11. Nd5 {[%clk 0:02:23]}
11... Qh5 {[%clk 0:02:01]} 12. Nec3 {[%clk 0:02:00.6]} 12... Ng4+ {[%clk
0:01:46.6]} 13. Kg1 {[%clk 0:02:00.1]} 13... Rxf2 {[%clk 0:01:27.1]} 14. Rxf2
{[%clk 0:01:47.2]} 14... Bxf2+ {[%clk 0:01:26.5]} 15. Kf1 {[%clk 0:01:47.7]}
15... Bxg3 {[%clk 0:01:17.3]} 16. Nxc7 {[%clk 0:01:35.2]} 16... Qf7+ {[%clk
0:00:56.5]} 17. Bf3 {[%clk 0:01:35.5]} 17... Qxc7 {[%clk 0:00:47.4]} 18. hxg4
{[%clk 0:01:31.1]} 18... Nd4 {[%clk 0:00:40.4]} 19. Kg2 {[%clk 0:01:30.4]} 19...
Bh4 {[%clk 0:00:38.6]} 20. Nd5 {[%clk 0:01:30.8]} 20... Qf7 {[%clk 0:00:38]} 21.
c3 {[%clk 0:01:28.7]} 21... Nxf3 {[%clk 0:00:29.7]} 22. Qxf3 {[%clk 0:01:29.6]}
22... Qg6 {[%clk 0:00:22]} 23. Kh3 {[%clk 0:01:20.6]} 23... Bd8 {[%clk
0:00:19.6]} 24. Ne3 {[%clk 0:00:22.8]} 24... h5 {[%clk 0:00:19.4]} 25. Nf5
{[%clk 0:00:23.2]} 25... d5 {[%clk 0:00:19.9]} 26. Qd3 {[%clk 0:00:16.8]} 26...
Qxg4+ {[%clk 0:00:19]} 27. Kh2 {[%clk 0:00:17.3]} 27... Qxe4 {[%clk 0:00:13.7]}
28. Qxe4 {[%clk 0:00:17.5]} 28... dxe4 {[%clk 0:00:14.6]} 29. Nd6 {[%clk
0:00:18.4]} 29... Bg4 {[%clk 0:00:12.9]} 30. Be3 {[%clk 0:00:15.3]} 30... Be7
{[%clk 0:00:12]} 31. Nxe4 {[%clk 0:00:13.7]} 31... Rf8 {[%clk 0:00:11.7]} 32.
Re1 {[%clk 0:00:10.5]} 32... Rf3 {[%clk 0:00:09.5]} 33. Nd2 {[%clk 0:00:07.2]}
33... Rf7 {[%clk 0:00:08.4]} 34. Nb3 {[%clk 0:00:04]} 34... Bh4 {[%clk
0:00:08.3]} 35. Rg1 {[%clk 0:00:03.4]} 35... Rf3 {[%clk 0:00:07.9]} 36. Bb6
{[%clk 0:00:02]} 36... Rh3+ {[%clk 0:00:07.7]} 37. Kg2 {[%clk 0:00:02.5]} 37...
Rd3 {[%clk 0:00:08.3]} 38. Rf1 {[%clk 0:00:01.4]} 38... Bh3+ {[%clk 0:00:08.1]}
39. Kg1 {[%clk 0:00:01.9]} 39... Bxf1 {[%clk 0:00:09]} 40. Kxf1 {[%clk
0:00:02.8]} 40... Rd1+ {[%clk 0:00:08.6]} 41. Ke2 {[%clk 0:00:02.9]} 41... Rb1
{[%clk 0:00:09.5]} 42. Kd3 {[%clk 0:00:02.5]} 42... Rxb2 {[%clk 0:00:09.9]} 43.
Bc7 {[%clk 0:00:03.2]} 43... Rxa2 {[%clk 0:00:10]} 44. Bxe5 {[%clk 0:00:03.6]}
44... Ra3 {[%clk 0:00:09.7]} 45. Kc4 {[%clk 0:00:03.6]} 45... Bf6 {[%clk
0:00:09.5]} 46. Bd6 {[%clk 0:00:04]} 46... b5+ {[%clk 0:00:09.4]} 47. Kb4 {[%clk
0:00:03.8]} 47... Ra2 {[%clk 0:00:08.4]} 48. Nc5 {[%clk 0:00:02]} 48... Rc2
{[%clk 0:00:08.1]} 49. Kb3 {[%clk 0:00:02.2]} 49... Rxc3+ {[%clk 0:00:07.6]} 50.
Kb4 {[%clk 0:00:03.1]} 50... Rxc5 {[%clk 0:00:07.4]} 51. Bxc5 {[%clk 0:00:03.1]}
51... h4 {[%clk 0:00:07.9]} 52. Ka5 {[%clk 0:00:03.4]} 52... h3 {[%clk
0:00:07.9]} 53. Kxa6 {[%clk 0:00:04.3]} 53... h2 {[%clk 0:00:08]} 0-1

[Event "*** Titled Tuesday Blitz"]
[Site "Chess.com"]
[Date "2021.03.09"]
[Round "11"]
[White "kirillshevchenko"]
[Black "ymoy"]
[Result "0-1"]
[WhiteElo "2816"]
[BlackElo "2681"]
[TimeControl "180+1"]
[EndTime "12:10:47 PST"]
[Termination "ymoy won by checkmate"]

1. e4 {[%clk 0:03:00.8]} 1... c5 {[%clk 0:02:59.7]} 2. c3 {[%clk 0:03:00.1]}
2... d5 {[%clk 0:02:59.4]} 3. exd5 {[%clk 0:02:59.9]} 3... Qxd5 {[%clk
0:03:00.3]} 4. d4 {[%clk 0:03:00.5]} 4... Nf6 {[%clk 0:03:00.4]} 5. Nf3 {[%clk
0:03:00]} 5... Bg4 {[%clk 0:03:00.5]} 6. Be2 {[%clk 0:02:55]} 6... e6 {[%clk
0:02:59.7]} 7. O-O {[%clk 0:02:53.4]} 7... Nc6 {[%clk 0:02:58.9]} 8. Be3 {[%clk
0:02:53.8]} 8... cxd4 {[%clk 0:02:54.7]} 9. cxd4 {[%clk 0:02:52.8]} 9... Be7
{[%clk 0:02:54.4]} 10. Nc3 {[%clk 0:02:51.9]} 10... Qd8 {[%clk 0:02:53]} 11. h3
{[%clk 0:02:47.2]} 11... Bh5 {[%clk 0:02:51.2]} 12. Qb3 {[%clk 0:02:47.1]} 12...
O-O {[%clk 0:02:32.2]} 13. Rad1 {[%clk 0:02:28.8]} 13... Na5 {[%clk 0:02:30.1]}
14. Qa4 {[%clk 0:02:26.7]} 14... a6 {[%clk 0:02:23.1]} 15. Ne5 {[%clk
0:01:31.4]} 15... Bxe2 {[%clk 0:02:19.8]} 16. Nxe2 {[%clk 0:01:31.9]} 16... b5
{[%clk 0:02:20.7]} 17. Qc2 {[%clk 0:01:31.8]} 17... Rc8 {[%clk 0:02:18.3]} 18.
Qd3 {[%clk 0:01:28.4]} 18... Nd5 {[%clk 0:02:10.6]} 19. Rc1 {[%clk 0:01:28.3]}
19... Bd6 {[%clk 0:02:08.1]} 20. Rfd1 {[%clk 0:01:19.1]} 20... Rxc1 {[%clk
0:02:04.2]} 21. Rxc1 {[%clk 0:01:18.1]} 21... Bxe5 {[%clk 0:02:04]} 22. dxe5
{[%clk 0:01:18.2]} 22... Nxe3 {[%clk 0:02:01.7]} 23. Qxe3 {[%clk 0:01:16.5]}
23... Nc4 {[%clk 0:02:01.1]} 24. Qc3 {[%clk 0:01:07.8]} 24... Qd5 {[%clk
0:02:00.8]} 25. f4 {[%clk 0:01:01.3]} 25... Qe4 {[%clk 0:02:00.7]} 26. Kf2
{[%clk 0:00:58.7]} 26... Rd8 {[%clk 0:01:59.5]} 27. Qf3 {[%clk 0:00:49.3]} 27...
Qxf3+ {[%clk 0:01:58.5]} 28. Kxf3 {[%clk 0:00:50.2]} 28... Nxb2 {[%clk
0:01:59.3]} 29. Rc6 {[%clk 0:00:50]} 29... Nd1 {[%clk 0:01:53.9]} 30. Nd4 {[%clk
0:00:26.7]} 30... g6 {[%clk 0:01:47]} 31. Ke4 {[%clk 0:00:25.9]} 31... b4 {[%clk
0:01:32.9]} 32. Rd6 {[%clk 0:00:14.6]} 32... Nc3+ {[%clk 0:01:24.6]} 33. Kd3
{[%clk 0:00:14.2]} 33... Ra8 {[%clk 0:01:23.1]} 34. a3 {[%clk 0:00:11]} 34...
Nd5 {[%clk 0:01:22]} 35. axb4 {[%clk 0:00:10.7]} 35... Nxb4+ {[%clk 0:01:22.9]}
36. Ke4 {[%clk 0:00:10]} 36... Nd5 {[%clk 0:01:22.7]} 37. g4 {[%clk 0:00:08.1]}
37... Ne7 {[%clk 0:01:20.4]} 38. f5 {[%clk 0:00:08.2]} 38... exf5+ {[%clk
0:01:16.1]} 39. gxf5 {[%clk 0:00:09.1]} 39... Nxf5 {[%clk 0:01:17]} 40. Nxf5
{[%clk 0:00:09.3]} 40... gxf5+ {[%clk 0:01:17.9]} 41. Kxf5 {[%clk 0:00:10.2]}
41... a5 {[%clk 0:01:13]} 42. Rd3 {[%clk 0:00:10.4]} 42... a4 {[%clk 0:01:13.1]}
43. Ra3 {[%clk 0:00:10.4]} 43... Ra6 {[%clk 0:01:06.6]} 44. Ke4 {[%clk
0:00:05.9]} 44... Kg7 {[%clk 0:00:48.3]} 45. Kf5 {[%clk 0:00:05.8]} 45... Ra5
{[%clk 0:00:46.6]} 46. h4 {[%clk 0:00:05.6]} 46... f6 {[%clk 0:00:44.4]} 47. Kf4
{[%clk 0:00:02.8]} 47... fxe5+ {[%clk 0:00:42.2]} 48. Kf5 {[%clk 0:00:03.4]}
48... Kf7 {[%clk 0:00:41.6]} 49. h5 {[%clk 0:00:03.9]} 49... Ke7 {[%clk
0:00:40.3]} 50. h6 {[%clk 0:00:04.4]} 50... Kf7 {[%clk 0:00:39.2]} 51. Ke4
{[%clk 0:00:03.3]} 51... Kg6 {[%clk 0:00:39]} 52. Kd3 {[%clk 0:00:02.6]} 52...
Kxh6 {[%clk 0:00:38.7]} 53. Kc4 {[%clk 0:00:03.5]} 53... Kg5 {[%clk 0:00:38.8]}
54. Kb4 {[%clk 0:00:03.9]} 54... Ra7 {[%clk 0:00:38.7]} 55. Ra1 {[%clk
0:00:03.3]} 55... h5 {[%clk 0:00:38.8]} 56. Rg1+ {[%clk 0:00:02.8]} 56... Kf5
{[%clk 0:00:39.2]} 57. Rf1+ {[%clk 0:00:03]} 57... Ke6 {[%clk 0:00:39.7]} 58.
Rh1 {[%clk 0:00:01.8]} 58... a3 {[%clk 0:00:40.2]} 59. Kb3 {[%clk 0:00:02.1]}
59... a2 {[%clk 0:00:40.4]} 60. Ra1 {[%clk 0:00:02.7]} 60... e4 {[%clk
0:00:38.8]} 61. Kb2 {[%clk 0:00:03.3]} 61... Ke5 {[%clk 0:00:39.1]} 62. Kb3
{[%clk 0:00:02.5]} 62... e3 {[%clk 0:00:39.3]} 63. Kb2 {[%clk 0:00:03.1]} 63...
Ke4 {[%clk 0:00:39.7]} 64. Rh1 {[%clk 0:00:03.3]} 64... a1=Q+ {[%clk 0:00:37.9]}
65. Rxa1 {[%clk 0:00:03.5]} 65... Rxa1 {[%clk 0:00:38.8]} 66. Kc2 {[%clk
0:00:04]} 66... e2 {[%clk 0:00:39.7]} 67. Kb3 {[%clk 0:00:04.2]} 67... e1=Q
{[%clk 0:00:39.6]} 68. Kc4 {[%clk 0:00:05.1]} 68... Rc1+ {[%clk 0:00:39.4]} 69.
Kb5 {[%clk 0:00:04.2]} 69... Qe2+ {[%clk 0:00:39.8]} 70. Ka4 {[%clk 0:00:04.6]}
70... Qb2 {[%clk 0:00:40.7]} 71. Ka5 {[%clk 0:00:04.9]} 71... Ra1# {[%clk
0:00:41.6]} 0-1

[Event "*** Titled Tuesday Blitz"]
[Site "Chess.com"]
[Date "2021.03.09"]
[Round "11"]
[White "sau6on"]
[Black "Trankuilizer"]
[Result "0-1"]
[WhiteElo "2428"]
[BlackElo "2595"]
[TimeControl "180+1"]
[EndTime "12:10:48 PST"]
[Termination "Trankuilizer won by resignation"]

1. e4 {[%clk 0:03:00.9]} 1... c5 {[%clk 0:02:58.9]} 2. Nf3 {[%clk 0:03:00.2]}
2... d6 {[%clk 0:02:58.9]} 3. d4 {[%clk 0:03:00.5]} 3... cxd4 {[%clk 0:02:59.5]}
4. Nxd4 {[%clk 0:03:01.4]} 4... Nf6 {[%clk 0:03:00.1]} 5. Nc3 {[%clk 0:03:00.4]}
5... a6 {[%clk 0:03:00.5]} 6. f4 {[%clk 0:02:55.9]} 6... e5 {[%clk 0:03:00]} 7.
Nf3 {[%clk 0:02:55.7]} 7... Nbd7 {[%clk 0:02:54.6]} 8. a4 {[%clk 0:02:48.9]}
8... Be7 {[%clk 0:02:54.4]} 9. Bc4 {[%clk 0:02:34.2]} 9... O-O {[%clk 0:02:54]}
10. f5 {[%clk 0:02:30]} 10... Qc7 {[%clk 0:02:53.6]} 11. Qe2 {[%clk 0:02:28.3]}
11... b6 {[%clk 0:02:40]} 12. O-O {[%clk 0:02:19.8]} 12... Bb7 {[%clk
0:02:39.9]} 13. Bg5 {[%clk 0:02:10.8]} 13... h6 {[%clk 0:02:37.9]} 14. Bh4
{[%clk 0:02:06.4]} 14... Nc5 {[%clk 0:02:20.8]} 15. Bxf6 {[%clk 0:02:05.1]}
15... Bxf6 {[%clk 0:02:20.4]} 16. Bd5 {[%clk 0:02:05.6]} 16... Rfc8 {[%clk
0:02:00.4]} 17. Rfd1 {[%clk 0:01:57.1]} 17... Nd7 {[%clk 0:01:56.4]} 18. Bxb7
{[%clk 0:01:54.3]} 18... Qxb7 {[%clk 0:01:56.4]} 19. Nd5 {[%clk 0:01:54.9]}
19... b5 {[%clk 0:01:47.1]} 20. a5 {[%clk 0:01:53.8]} 20... b4 {[%clk
0:01:24.3]} 21. Ra4 {[%clk 0:01:52.2]} 21... b3 {[%clk 0:01:23.5]} 22. c3 {[%clk
0:01:40.3]} 22... Rab8 {[%clk 0:01:19]} 23. g3 {[%clk 0:01:12.5]} 23... Qc6
{[%clk 0:01:05.3]} 24. Ra3 {[%clk 0:01:04.8]} 24... Rb5 {[%clk 0:01:04.4]} 25.
Nd2 {[%clk 0:00:50.2]} 25... Bd8 {[%clk 0:00:24.4]} 26. Rda1 {[%clk 0:00:30.9]}
26... Nf6 {[%clk 0:00:17.6]} 27. c4 {[%clk 0:00:19]} 27... Rb7 {[%clk
0:00:14.7]} 28. Qd3 {[%clk 0:00:17.6]} 28... Nxd5 {[%clk 0:00:14.2]} 29. exd5
{[%clk 0:00:18.5]} 29... Qc5+ {[%clk 0:00:14.4]} 30. Kg2 {[%clk 0:00:17.7]}
30... Qd4 {[%clk 0:00:14.6]} 31. Qxd4 {[%clk 0:00:16.6]} 31... exd4 {[%clk
0:00:15.5]} 32. Rc1 {[%clk 0:00:14.6]} 32... Bg5 {[%clk 0:00:13.5]} 33. Rd1
{[%clk 0:00:13.4]} 33... Be3 {[%clk 0:00:13.1]} 34. Kf3 {[%clk 0:00:11.3]} 34...
Rb4 {[%clk 0:00:12.3]} 35. Ke4 {[%clk 0:00:07.7]} 35... Re8+ {[%clk 0:00:08.6]}
36. Kd3 {[%clk 0:00:07.3]} 36... Bg5 {[%clk 0:00:09.5]} 37. Ne4 {[%clk
0:00:06.6]} 37... Be7 {[%clk 0:00:07.1]} 38. Kxd4 {[%clk 0:00:05.7]} 38... Rc8
{[%clk 0:00:07]} 39. Rd3 {[%clk 0:00:03.8]} 39... Rcxc4+ {[%clk 0:00:05.9]} 40.
Ke3 {[%clk 0:00:03.8]} 40... Rxe4+ {[%clk 0:00:06.8]} 41. Kf3 {[%clk 0:00:04.3]}
41... Bf6 {[%clk 0:00:06.4]} 42. Raxb3 {[%clk 0:00:03.9]} 42... Rxb3 {[%clk
0:00:06.6]} 43. Rxb3 {[%clk 0:00:04.4]} 43... Ra4 {[%clk 0:00:06.4]} 44. Rb6
{[%clk 0:00:03]} 44... Rxa5 {[%clk 0:00:05.7]} 45. Rxd6 {[%clk 0:00:03.6]} 45...
Ra4 {[%clk 0:00:03.2]} 46. b3 {[%clk 0:00:01.8]} 46... Rb4 {[%clk 0:00:03.3]}
47. Rb6 {[%clk 0:00:02.3]} 47... Rxb6 {[%clk 0:00:03.3]} 48. d6 {[%clk
0:00:01.8]} 48... Rxb3+ {[%clk 0:00:04.2]} 49. Ke4 {[%clk 0:00:02.5]} 49... Rb8
{[%clk 0:00:03.9]} 50. Kd5 {[%clk 0:00:03.4]} 50... Rd8 {[%clk 0:00:04.8]} 51.
Kc6 {[%clk 0:00:03.7]} 51... a5 {[%clk 0:00:05.7]} 52. Kc7 {[%clk 0:00:04.6]}
52... a4 {[%clk 0:00:06.6]} 53. d7 {[%clk 0:00:04.4]} 53... a3 {[%clk
0:00:07.5]} 54. Kc6 {[%clk 0:00:05]} 54... a2 {[%clk 0:00:08.4]} 55. Kd6 {[%clk
0:00:05.3]} 55... a1=Q {[%clk 0:00:09.3]} 0-1

[Event "*** Titled Tuesday Blitz"]
[Site "Chess.com"]
[Date "2021.03.09"]
[Round "11"]
[White "tylityli"]
[Black "Kaslask"]
[Result "1-0"]
[WhiteElo "2263"]
[BlackElo "2334"]
[TimeControl "180+1"]
[EndTime "12:10:48 PST"]
[Termination "tylityli won by resignation"]

1. d4 {[%clk 0:03:00.9]} 1... Nf6 {[%clk 0:02:57.3]} 2. c4 {[%clk 0:03:01]} 2...
g6 {[%clk 0:02:56.7]} 3. Nc3 {[%clk 0:03:01.1]} 3... Bg7 {[%clk 0:02:57.2]} 4.
e4 {[%clk 0:03:01.4]} 4... d6 {[%clk 0:02:57.6]} 5. Nge2 {[%clk 0:03:01.6]} 5...
O-O {[%clk 0:02:57.4]} 6. Ng3 {[%clk 0:03:02.5]} 6... c5 {[%clk 0:02:52.2]} 7.
d5 {[%clk 0:03:02.3]} 7... e6 {[%clk 0:02:51.7]} 8. Be2 {[%clk 0:03:02.1]} 8...
exd5 {[%clk 0:02:51.6]} 9. cxd5 {[%clk 0:03:03]} 9... a6 {[%clk 0:02:44.7]} 10.
a4 {[%clk 0:03:02.6]} 10... Qa5 {[%clk 0:02:44.3]} 11. O-O {[%clk 0:03:01.5]}
11... b5 {[%clk 0:02:40.3]} 12. Bf4 {[%clk 0:02:45.6]} 12... b4 {[%clk
0:02:38.5]} 13. Nb1 {[%clk 0:02:31.3]} 13... Qc7 {[%clk 0:02:34.4]} 14. Nd2
{[%clk 0:02:30.9]} 14... Ne8 {[%clk 0:02:27.5]} 15. Nc4 {[%clk 0:02:29]} 15...
a5 {[%clk 0:02:26.6]} 16. Rc1 {[%clk 0:02:27.8]} 16... Ba6 {[%clk 0:02:26.2]}
17. b3 {[%clk 0:02:27.4]} 17... Bxc4 {[%clk 0:02:25.4]} 18. Bxc4 {[%clk
0:02:25.7]} 18... Nd7 {[%clk 0:02:25.2]} 19. Qd2 {[%clk 0:02:23]} 19... Ne5
{[%clk 0:02:22.3]} 20. Bh6 {[%clk 0:02:20.7]} 20... Nxc4 {[%clk 0:02:19.8]} 21.
Rxc4 {[%clk 0:02:17.9]} 21... Nf6 {[%clk 0:02:18]} 22. Bxg7 {[%clk 0:02:11]}
22... Kxg7 {[%clk 0:02:16.9]} 23. Rfc1 {[%clk 0:02:05.8]} 23... Rfe8 {[%clk
0:02:12.5]} 24. Qb2 {[%clk 0:02:04.4]} 24... Qe7 {[%clk 0:02:09.3]} 25. f4
{[%clk 0:02:00.5]} 25... Kg8 {[%clk 0:02:08.5]} 26. Qf2 {[%clk 0:01:32.3]} 26...
Ng4 {[%clk 0:02:02]} 27. Qf3 {[%clk 0:01:30.1]} 27... Qh4 {[%clk 0:02:01.3]} 28.
h3 {[%clk 0:01:27.9]} 28... Nh6 {[%clk 0:01:52.8]} 29. f5 {[%clk 0:01:22.7]}
29... Qg5 {[%clk 0:01:49.9]} 30. f6 {[%clk 0:01:12.6]} 30... Re5 {[%clk
0:01:46.3]} 31. Rf1 {[%clk 0:01:09.9]} 31... Rae8 {[%clk 0:01:45.5]} 32. Qf4
{[%clk 0:01:01.1]} 32... Qxf4 {[%clk 0:01:38.6]} 33. Rxf4 {[%clk 0:01:02]} 33...
Kf8 {[%clk 0:01:37.9]} 34. h4 {[%clk 0:00:41.5]} 34... Ng8 {[%clk 0:01:32.2]}
35. Kf2 {[%clk 0:00:39.5]} 35... h6 {[%clk 0:01:23.1]} 36. Rc1 {[%clk 0:00:23]}
36... h5 {[%clk 0:01:22.9]} 37. Kf3 {[%clk 0:00:18]} 37... Nh6 {[%clk
0:01:22.6]} 38. Rc4 {[%clk 0:00:13.9]} 38... Ng4 {[%clk 0:01:22.1]} 39. Rxg4
{[%clk 0:00:14]} 39... hxg4+ {[%clk 0:01:21.3]} 40. Kxg4 {[%clk 0:00:14.9]}
40... Kg8 {[%clk 0:01:20.4]} 41. Kf4 {[%clk 0:00:14.1]} 41... Kh7 {[%clk
0:01:19.9]} 42. Kg4 {[%clk 0:00:14.5]} 42... Kh6 {[%clk 0:01:19.4]} 43. Kf3
{[%clk 0:00:09.8]} 43... g5 {[%clk 0:01:18.4]} 44. h5 {[%clk 0:00:09.5]} 44...
g4+ {[%clk 0:01:15.5]} 45. Kf4 {[%clk 0:00:09]} 45... Rg8 {[%clk 0:01:11.3]} 46.
Nf5+ {[%clk 0:00:07.7]} 46... Kxh5 {[%clk 0:01:09.7]} 47. Nxd6 {[%clk
0:00:07.1]} 47... Reg5 {[%clk 0:01:02.7]} 48. Nxf7 {[%clk 0:00:06.3]} 48... R5g6
{[%clk 0:01:02.8]} 49. e5 {[%clk 0:00:06]} 49... Rf8 {[%clk 0:01:02.7]} 50. Nd6
{[%clk 0:00:04.8]} 50... g3 {[%clk 0:01:01.7]} 51. Ne4 {[%clk 0:00:03.5]} 51...
Rg4+ {[%clk 0:01:01.1]} 52. Kf3 {[%clk 0:00:03.7]} 52... Kh4 {[%clk 0:01:00.5]}
53. Rxc5 {[%clk 0:00:03.4]} 53... Re8 {[%clk 0:00:54.8]} 54. e6 {[%clk
0:00:02.6]} 54... Rf8 {[%clk 0:00:52.3]} 55. f7 {[%clk 0:00:02.6]} 55... Rg7
{[%clk 0:00:52]} 56. Rc7 {[%clk 0:00:02.4]} 56... Kh5 {[%clk 0:00:49.7]} 57. Kf4
{[%clk 0:00:02.7]} 57... Kg6 {[%clk 0:00:49.8]} 58. Ke5 {[%clk 0:00:02.6]} 58...
Rh7 {[%clk 0:00:49.2]} 59. Re7 {[%clk 0:00:02.5]} 59... Rd8 {[%clk 0:00:48.2]}
60. Re8 {[%clk 0:00:02.1]} 60... Rh5+ {[%clk 0:00:48]} 61. Kf4 {[%clk
0:00:01.7]} 61... Rf5+ {[%clk 0:00:47.6]} 62. Ke3 {[%clk 0:00:02]} 62... Rdxd5
{[%clk 0:00:47.3]} 63. f8=Q {[%clk 0:00:01.7]} 63... Rxf8 {[%clk 0:00:46.8]} 64.
Rxf8 {[%clk 0:00:02.6]} 64... Re5 {[%clk 0:00:46.6]} 65. Rg8+ {[%clk 0:00:03.3]}
65... Kh7 {[%clk 0:00:46]} 66. Rf8 {[%clk 0:00:03.3]} 66... Kg7 {[%clk
0:00:43.2]} 67. Rf3 {[%clk 0:00:03]} 67... Rxe6 {[%clk 0:00:42.1]} 68. Rxg3+
{[%clk 0:00:03.9]} 68... Kf8 {[%clk 0:00:41.9]} 69. Rg5 {[%clk 0:00:04.1]} 69...
Rc6 {[%clk 0:00:41.3]} 70. Rc5 {[%clk 0:00:03.9]} 1-0